Cogmind - Beta 13 @@@ ROGUE MODE // 2024.04.01 @ 12:34:39 Player: Pepsi Result: Destroyed by G-34 Mercenary with Small Laser Performance ------------- Evolutions (1) 500 Regions Visited (3) 600 Robots Destroyed (71) 355 Value Destroyed (1769) 1769 Prototype IDs (2) 40 Alien Tech Used (0) 0 Bonus (152) 152 TOTAL SCORE: 3416 Bonus ------- High Alert Combat Kills 152 Cogmind --------- Core Integrity 0/400 Matter 260/300 Energy 259/265 System Corruption 0% Temperature Cool (35) Movement Walking (120) Location -9/Materials Parts ------- > --- POWER (1) -------- Improved Ion Engine > --- PROPULSION (3) --- Improved Aluminum Leg Improved Aluminum Leg Improved Aluminum Leg > --- UTILITY (2) ------ Cooling System Hacking Suite > --- WEAPON (3) ------- Particle Gun Particle Gun Autogun > --- INVENTORY (5) ---- Improved Ion Engine Aluminum Leg Aluminum Leg Light Armor Plating Particle Gun Peak State ------------ > --- POWER ------------ Light Ion Engine > --- PROPULSION ------- Flight Unit Flight Unit > --- UTILITY ---------- Decoy Drone Bay > --- WEAPON ----------- Small Laser Light Assault Rifle > --- INVENTORY -------- Light Ion Engine Flight Unit Flight Unit Grenade Launcher Datajack [Rating: 19] Favorites ----------- Power Light Ion Engine Engine Light Ion Engine Propulsion Aluminum Leg Leg Aluminum Leg Wheel Wheel Flight Unit Flight Unit Utility Hacking Suite Device Decoy Drone Bay Storage Medium Storage Unit Processor Transport Network Coupler Hackware Hacking Suite Protection Light Armor Plating Weapon Light Assault Rifle Energy Gun Small Laser Energy Cannon Advanced Beam Cannon Ballistic Gun Light Assault Rifle Launcher Grenade Launcher Build | -11 -10 -10 -9 ------- Run | Yrd Mat Min Mat Slots Evolved 2 | . . . 2 Power . | . . . . Propulsion 1 | . . . 1 Utility . | . . . . Weapon 1 | . . . 1 Parts Attached 71 | 6 7 17 41 Power 13 | 1 2 3 7 Engine 13 | 1 2 3 7 Core . | . . . . Reactor . | . . . . Propulsion 20 | 3 1 4 12 Treads . | . . . . Leg 17 | 2 1 2 12 Wheel 1 | 1 . . . Hover . | . . . . Flight 2 | . . 2 . Utility 12 | . 2 4 6 Device 7 | . 1 2 4 Storage 2 | . 1 1 . Processor 1 | . . 1 . Hackware 1 | . . . 1 Protection 1 | . . . 1 Artifact . | . . . . Weapon 26 | 2 2 6 16 Energy Gun 14 | . 1 3 10 Energy Cannon 3 | . . . 3 Ballistic Gun 6 | 2 1 1 2 Ballistic Cannon . | . . . . Launcher 3 | . . 2 1 Special Weapon . | . . . . Impact Weapon . | . . . . Slashing Weapon . | . . . . Piercing Weapon . | . . . . Special Melee Weapon . | . . . . Unidentified Prototypes 2 | . . 1 1 Parts Lost 16 | . 4 2 10 Power 3 | . 1 . 2 Propulsion 5 | . 1 2 2 Utility 1 | . . . 1 Weapon 7 | . 2 . 5 Highest Loss Streak 6 | . 2 2 6 To Critical Strikes . | . . . . Average Slot Usage (%) 84 | . 87 75 87 Engine 12 | . 13 13 10 Leg 23 | . 27 8 29 Flight 4 | . . 16 . Device 8 | . 4 11 8 Storage 4 | . 12 2 . Hackware 3 | . . . 9 Energy Gun 9 | . 5 2 18 Energy Cannon 2 | . . . 6 Ballistic Gun 10 | . 22 9 1 Launcher 3 | . . 10 1 Naked Turns . | . . . . Heaviest Build 21 | 6 18 21 20 Greatest Support 39 | 10 20 20 39 Greatest Overweight (x) 6 | . . 6 4 Average Overweight (x) . | . . . . Largest Inventory Capacity 10 | 5 10 10 5 Average Capacity 6 | 5 9 5 5 Most Carried 10 | 5 9 10 5 Average Carried 5 | 3 6 5 4 Final Capacity 10 | 5 10 5 5 Final Carried 9 | 5 9 5 5 Class Distribution -------------------- 39% | Mutant 35% | Scavenger-Mutant 15% | Gunner 8% | Scavenger-Gunner Dominant Class ---------------- Mutant | -10/Materials Scavenger-Mutant | -10/Mines Gunner | -9/Materials Resources | -11 -10 -10 -9 ----------- Run | Yrd Mat Min Mat Matter Collected 1366 | 261 201 291 613 Remotely . | . . . . Salvage Created 2017 | 37 295 285 1400 Parts 132 | 2 13 29 88 Haulers Intercepted 1 | . 1 . . Recyclers Shooed 1 | . . . 1 Parts Field Recycled . | . . . . Retrieved Matter . | . . . . Parts Self-Destructed . | . . . . Prevented . | . . . . Kills | -11 -10 -10 -9 ------- Run | Yrd Mat Min Mat Combat Hostiles Destroyed 59 | 1 7 17 34 Guns 31 | 1 7 6 17 Cannons 10 | . . . 10 AOE 16 | . . 11 5 Classes Destroyed 14 | 1 3 4 6 Worker 4 | . . 1 3 Builder 3 | . . . 3 Tunneler 1 | . . 1 . Hauler 1 | . 1 . . Mechanic 1 | . . 1 . Operator 1 | . . . 1 Watcher 4 | . 1 . 3 Swarmer 18 | . 2 9 7 Grunt 29 | 1 5 5 18 Brawler 1 | . . . 1 Duelist 2 | . . . 2 Protector 1 | . . . 1 Sentry 5 | . . . 5 Assembled 3 | . . 3 . Best Kill Streak 6 | 1 1 4 6 Combat Bots Only 5 | 1 1 3 5 Max Kills in Single Turn 3 | 1 1 3 3 Gunslinging 1 | . . . 1 Exploded 3 | . . 3 2 Melee . | . . . . Uniques/NPCs Destroyed . | . . . . Combat | -11 -10 -10 -9 -------- Run | Yrd Mat Min Mat Hostile Shots Fired 347 | 5 75 73 194 Missed 104 | . 26 26 52 Damage Taken 3158 | 54 530 702 1872 Core 607 | 10 79 111 407 Absorbed by Shields . | . . . . Core Remaining (%) 58 | 96 . 20 . Volleys Fired 189 | 3 56 32 98 Largest 3 | 2 2 2 3 Hottest 198 | 40 60 60 198 Shots Fired 386 | 6 110 48 222 Gun 291 | 6 110 36 139 Cannon 76 | . . . 76 Launcher 19 | . . 12 7 Special . | . . . . Kinetic 117 | 6 80 21 10 Thermal 239 | . 30 15 194 Explosive 19 | . . 12 7 Electromagnetic 11 | . . . 11 Robot Hit Streak 12 | 4 12 4 12 Robot Miss Streak 7 | 1 3 3 7 Penetration Max . | . . . . Secondary Targets 3 | . . 1 2 Max Gunslinging Chain 1 | . . 1 1 Shots Hit Robots 196 | 4 61 24 107 Core Hits 123 | 2 22 31 68 Critical Kills 1 | . . . 1 Critical Parts Destroyed . | . . . . Critical Strikes 3 | . . . 3 Burn 2 | . . . 2 Meltdown 1 | . . . 1 Melee Attacks . | . . . . Impact . | . . . . Slashing . | . . . . Piercing . | . . . . Sneak Attacks . | . . . . Combat Hostiles . | . . . . Follow-up Attacks . | . . . . Damage Inflicted 3955 | 41 640 805 2469 Guns 2028 | 41 636 213 1138 Cannons 712 | . . . 712 Explosions 1205 | . . 592 613 Melee . | . . . . Ramming 10 | . 4 . 6 Kinetic 644 | 41 447 93 63 Thermal 2348 | . 189 120 2039 Explosive 845 | . . 592 253 Electromagnetic 108 | . . . 108 Impact . | . . . . Slashing . | . . . . Piercing . | . . . . Highest Corruption 1 | . . 1 . Average Corruption 1 | . . 1 . Corruption Purged . | . . . . Corruption Blocked . | . . . . Effects 7 | . . 7 . Message Errors 1 | . . 1 . Matter Fused 2 | . . 2 . Heat Flow Errors 1 | . . 1 . Energy Discharges 1 | . . 1 . Data Loss (minor) 2 | . . 2 . Overload Shots . | . . . . Overflow Damage 41 | . . 6 35 Projectiles . | . . . . Explosions 41 | . . 6 35 Melee . | . . . . Knockbacks . | . . . . Impact . | . . . . Kinetic . | . . . . Secondary . | . . . . Self-Inflicted Damage 182 | . . 93 89 Shots 7 | . . 4 3 Rammed . | . . . . Targets Rammed 5 | . 1 . 4 Kicked 5 | . 1 . 4 Crushed . | . . . . Highest Temperature 710 | 6 52 224 710 Average Temperature 148 | 6 15 56 169 Received Heat Transfer 1089 | 30 219 69 771 Effects 23 | . . . 23 Shutdowns 5 | . . . 5 Energy Bleed 3 | . . . 3 Interference 5 | . . . 5 Matter Decay 3 | . . . 3 Short Circuit 2 | . . . 2 Damage (minor) 1 | . . . 1 Damage (major) 3 | . . . 3 Damage (core) 1 | . . . 1 Siege Activations . | . . . . Robots Corrupted . | . . . . Combat Hostiles . | . . . . Parts Fried . | . . . . Impact Corruptions . | . . . . Robots Melted 2 | . . . 2 Combat Hostiles 2 | . . . 2 Parts Melted 11 | . . . 11 Heat Transferred 4525 | . 425 275 3825 Parts Sabotaged . | . . . . Parts Stolen . | . . . . Parts Stripped . | . . . . Power Chain Reactions . | . . . . Alert | -11 -10 -10 -9 ------- Run | Yrd Mat Min Mat Peak Influence 750 | 20 194 213 750 Initial 56 | . 13 37 56 Average 215 | 2 54 82 461 Maximum Alert Level 3 | . . 1 3 Low Security (%) 60 | 100 100 83 8 Level 1 12 | . . 16 21 Level 2 24 | . . . 63 Level 3 2 | . . . 6 Level 4 . | . . . . Level 5 . | . . . . High Security . | . . . . Max Security . | . . . . Squads Dispatched 8 | . 2 1 5 Investigation 2 | . 1 . 1 Extermination . | . . . . Reinforcement 3 | . 1 . 2 Assault 3 | . . 1 2 Garrison . | . . . . Intercept . | . . . . Searches Triggered . | . . . . Construction Impeded . | . . . . Haulers Reinforced . | . . . . Active Scanning Responses . | . . . . Cargo Convoy Interrupts . | . . . . Stealth | -11 -10 -10 -9 --------- Run | Yrd Mat Min Mat Distress Signals 6 | . . . 6 Communications Jammed . | . . . . Distress Signals . | . . . . Times Spotted 100 | 1 18 28 53 Peak Tracking Total 11 | 1 5 11 6 Tactical Retreats 7 | . 1 4 2 Traps | -11 -10 -10 -9 ------- Run | Yrd Mat Min Mat Traps Triggered 2 | . 1 . 1 Indirectly . | . . . . Trap Hack Attempts . | . . . . Triggered . | . . . . Disarmed . | . . . . Reprogrammed . | . . . . Reused . | . . . . Traps Extracted . | . . . . Installed . | . . . . Triggered . | . . . . Machines | -11 -10 -10 -9 ---------- Run | Yrd Mat Min Mat Machines Disabled 5 | . . 1 4 Max in Single Turn 2 | . . . 2 Machines Repaired . | . . . . Machines Dismantled . | . . . . Machines Sabotaged . | . . . . Overloaded Fab Kills . | . . . . Hacking | -11 -10 -10 -9 --------- Run | Yrd Mat Min Mat Machines Accessed 7 | . 2 1 4 Terminals 3 | . 1 . 2 Fabricators . | . . . . Repair Stations . | . . . . Recycling Units 3 | . 1 . 2 Scanalyzers . | . . . . Garrison Access . | . . . . Total Hacks 14 | . 5 1 8 Successful 9 | . 3 1 5 Failed 5 | . 2 . 3 Catastrophic 1 | . . . 1 Database Lockouts . | . . . . Manual 4 | . 2 . 2 Terminals 9 | . 3 . 6 Fabricators . | . . . . Repair Stations . | . . . . Recycling Units 4 | . 2 . 2 Scanalyzers . | . . . . Garrison Access . | . . . . Terminal Hacks 7 | . 3 1 3 Record 4 | . 3 . 1 Open Door 1 | . . 1 . Emergency Access Points 1 | . . . 1 Zone Layout 1 | . . . 1 Fabricator Hacks . | . . . . Repair Station Hacks . | . . . . Recycling Unit Hacks 2 | . . . 2 Retrieve Components 2 | . . . 2 Scanalyzer . | . . . . Garrison Access Hacks . | . . . . Unauthorized Hacks . | . . . . Terminals . | . . . . Fabricators . | . . . . Repair Stations . | . . . . Recycling Units . | . . . . Scanalyzers . | . . . . Garrison Access . | . . . . Data Cores Recovered . | . . . . Used . | . . . . Hacking Detections 3 | . 2 . 1 Full Trace Events . | . . . . Feedback Events . | . . . . Feedback Blocked . | . . . . Robot Schematics Acquired . | . . . . Robots Built . | . . . . Authchips . | . . . . Time . | . . . . Total Robot Build Rating . | . . . . Part Schematics Acquired . | . . . . Parts Built . | . . . . Authchips . | . . . . Time . | . . . . Total Part Build Rating . | . . . . Parts Repaired . | . . . . Time . | . . . . Parts Recycled . | . . . . Recycled Matter . | . . . . Retrieved Matter . | . . . . Retrieved Components 2 | . . . 2 Parts Scanalyzed . | . . . . Part Schematics Acquired . | . . . . Parts Damaged . | . . . . Bothacking | -11 -10 -10 -9 ------------ Run | Yrd Mat Min Mat Used RIF Installer . | . . . . Robots Hacked . | . . . . Non-combat . | . . . . Combat . | . . . . Robot Hacks Applied . | . . . . Relay Couplers Released . | . . . . Fabnet Peak Effective % . | . . . . Robots Rewired . | . . . . Allies Hacked . | . . . . Hacks Repelled . | . . . . Allies | -11 -10 -10 -9 -------- Run | Yrd Mat Min Mat Total Allies 1 | . . 1 . Largest Group 1 | . . 1 . Highest-Rated Group 31 | . . 31 . Highest-Rated Ally 31 | . . 31 . Total Orders . | . . . . Ally Attacks 6 | . . 6 . Total Damage 64 | . . 64 . Kills . | . . . . Allies Corrupted . | . . . . Allies Melted . | . . . . Intel | -11 -10 -10 -9 ------- Run | Yrd Mat Min Mat Robot Analysis Total . | . . . . Derelict Logs Recovered 1 | . . 1 . Drone Launches 2 | . . 2 . Drone Recoveries . | . . . . Exploration | -11 -10 -10 -9 ------------- Run | Yrd Mat Min Mat Turns Passed 3262 | 105 1015 902 1240 Spaces Moved 2053 | 87 691 544 731 Core 72 | 33 . 28 11 Treads . | . . . . Legs 1670 | 54 691 205 720 Wheels . | . . . . Hover . | . . . . Flight 311 | . . 311 . Fastest Speed 37 | 50 120 37 50 Average Speed 124 | 93 120 142 119 Slowest Speed 350 | 120 120 350 250 Overloaded Moves . | . . . . Propulsion Burnouts . | . . . . Robots Hopped . | . . . . Cave-ins Triggered . | . . . . Exploration Rate (%) 45 | 8 53 79 43 Regions Visited 3 Branch Regions 1 Pre-discovered Areas 1 | . . 1 . Known Exits Taken . | . . . . Unknown Exits Taken 3 | 1 1 1 . Scrap Searched 1 | . . 1 . Spaces Dug . | . . . . Terrain Destroyed 122 | . . 80 42 Melee . | . . . . Projectile . | . . . . AOE 122 | . . 80 42 Terrain Rammed . | . . . . Walls Destroyed . | . . . . Machines Disabled . | . . . . Actions | -11 -10 -10 -9 --------- Run | Yrd Mat Min Mat Total 2425 | 105 778 629 913 Wait 21 | . 4 9 8 Move 2050 | 86 690 543 731 Hop . | . . . . Pick Up 39 | 10 15 7 7 Fast Attach 24 | . . 9 15 Attach 22 | 5 6 4 7 Detach 6 | . . 5 1 Swap 25 | 1 1 4 19 Drop 44 | . 5 16 23 Fire 189 | 3 56 32 98 Melee . | . . . . Ram . | . . . . Kick 5 | . 1 . 4 Crush . | . . . . Escape Stasis . | . . . . Rewire . | . . . . Trap . | . . . . Miscellaneous . | . . . . Route ------- -11/Scrapyard -10/Materials (discovered 2 exits: *Mat / *Min) -10/Mines (discovered 2 exits: *Mat x2) -9/Materials (discovered 4 exits: [Mat] / [*Min] / [*Sto x2]) History --------- Turn | Location | Event 2 | -11/Scrapyard | Met Revision 17 77 | -11/Scrapyard | Discovered new exit (range 8) 106 | -11/Scrapyard | Entered Materials 310 | -10/Materials | Build established: Mutant 667 | -10/Materials | Discovered new exit (range 9) 802 | -10/Materials | Discovered new exit (range 7) 1051 | -10/Materials | Build established: Scavenger-Mutant 1121 | -10/Materials | Entered Mines 1122 | -10/Mines | Assembled infested the area 1229 | -10/Mines | Core integrity fell below 50% 1308 | -10/Mines | Found the Drone Emporium 1313 | -10/Mines | Found Prototype Device 1313 | -10/Mines | Identified Decoy Drone Bay 1824 | -10/Mines | Discovered new exit (range 9) 1845 | -10/Mines | Met a Derelict testing a Signal Generator 1952 | -10/Mines | Learned location of Zion (-7) 1988 | -10/Mines | Discovered new exit (range 15) 2023 | -10/Mines | Entered Materials 2023 | -9/Materials | Evolved 2 slots: Propulsion x1, Weapon x1 2048 | -9/Materials | Build established: Mutant 2283 | -9/Materials | Discovered new exit (range 4) 2295 | -9/Materials | Core integrity fell below 50% 2310 | -9/Materials | Lost 6 parts (1p2n3w) 2407 | -9/Materials | Discovered new exit (range 15) 2823 | -9/Materials | First assault squad dispatched 2854 | -9/Materials | Discovered new exit (range 8) 2906 | -9/Materials | Discovered new exit (range 13) 3143 | -9/Materials | Core integrity fell below 20% 3257 | -9/Materials | Build established: Gunner 3263 | -9/Materials | Destroyed by G-34 Mercenary with Small Laser Last Messages --------------- 03164_ K-01 Serf collects debris. 03164_ Dropped Aluminum Leg. 03165_ Acquired Aluminum Leg. 03166_ Dropped Imp. Ion Engine. 03167_ K-01 Serf collects debris. 03172_ Acquired Imp. Ion Engine. 03173_ Destroyed Lgt. Ion Engine. 03174_ K-01 Serf collects debris. 03198_ Dropped Ion Engine. 03199_ K-01 Serf collects debris. 03203_ Destroyed Hover Unit. 03223_ ALERT: Significant disruption in Zone 3L, assault force dispatched. 03232_ Dropped Sml. Laser. 03237_ Acquired Particle Gun. 03241_ C-30 ARC bursts open, deploying its payload. 03241_ G-47 Trooper unfolds itself. 03241_ G-34 Mercenary unfolds itself. [Achievement: First Step to Greatness] Map ----- +----------------------------------------------------+ | ??# # #???????????????????????????????? | | ??# # """ #???????????????????????????????? | | ??# # """ #???##??????????????????????????? | | ??# # """ #?? ??????????????????????????? | | ??# # """ #?? ?????????????????????????? | | ### # """! #??? ?????????????????????????? | | ## =%= ##? ????????????????????????? | | *%!= #?""" "????????????????????????? | | ""=%% +??"" "????????????????????????? | | """** #???" "????????????????????????? | | "##### """= #???? ????????????????????????? | | "#???## """ % #??###+###?????????????????????? | | "#????# """ ! #### #?????????????????????? | | ##????# #?????????????????????? | | ??????# #?????????????????????? | | ??????# #?????????????????????? | | ??????# ##+####### *#?????????????????????? | | ??????# #????????## ##?########????????????? | | ??????+ #?????????# # #????????????? | | ??????# +?????????+ + #????????????? | | ??????# #?????????# # #????????????? | | ??????# #?????????# #?? #????????????? | | ??????? #?????????# #????######????????????? | | ??????? ?????###### #?##########???????????? | | ???????????????# ### [ !#???????????? | | ???????????????# @/ [[[ #???????????? | | ???????????????# ### [! #???????????? | | ???????????????##+#######?# #???????????? | | ??????????????????????????# g #???????????? | | ??????????????????????????# """ #???????????? | | ??????????????????????????# """ #???????????? | | ??????????????????????????# """ #???????????? | | ??????????????????????????# #???????????? | | ??????????????????????????#####+####???????????? | | ???????????????????????????????%???????????????? | | ???????????????????????????????"???????????????? | | ??????????????????????????????? ???????????????? | | ??????????????????????????????? ???????????????? | | ??????????????????????????????? ???????????????? | | ??????????????????????????????? ???????????????? | | ??????????????????????????????? ???????????????? | | ???????????????????????????????????????????????? | | ???????????????????????????????????????????????? | | ???????????????????????????????????????????????? | | ???????????????????????????????????????????????? | | ???????????????????????????????????????????????? | | ???????????????????????????????????????????????? | | ???????????????????????????????????????????????? | | ???????????????????????????????????????????????? | | ???????????????????????????????????????????????? | +----------------------------------------------------+ Best States ------------- Heat Dissipation 50 Coolant Potential 50 Energy Generation 12 Energy Capacity 265 Matter Stores 300 Matter Capacity 300 Sight Range 16 Terrain Scan Density 10 Armor Coverage 150 Evasion (%) 62 Offensive Hacking 10 Item Schematics ----------------- None Robot Schematics ------------------ None Fabricated ------------ Nothing Alien Tech Used ----------------- None Achievements -------------- Crack Shot First Step to Greatness I Survived The Infestation It's Just You Loot Pinata Risk Taker Significant Disruption Storm Trooper Uninvited Guest Challenges ------------ None Game ------ Seed CloakingDeliveryMembrane Manual? 0 Play Time 00:53:32 Cumulative 0.8 hours Start 2024.04.01 @ 11:38:29 End 2024.04.01 @ 12:34:39 Sessions 1 Manual Loads 0 Difficulty Rogue Special Mode None Game No. 1 Rogue 1 Adventurer 0 Explorer 0 Win Type - Total 0 Types 0/0/0/0/0/0/0/0/0 Lore% 0 Gallery% 2 Achievement% 3 Wizard Run 0 Options --------- Layout 1 ASCII 0 Keyboard 1 Movement Vi Keybinds 0 Fullscreen 1 Font 32/TamsynBold Map View 50x35 Zoom Use 0% Tactical HUD 1 Map Filters NONE Filters NONE Steam 1 RUN: b7b3b41b-a035-47b1-949e-8fbbd6392aca